bitfinex/quotes_SOLUSD_20241111
["timestamp","ask_amount","ask_price","bid_price","bid_amount"]
[1731354378529,9.9208557,217.11,216.93,22.43603446]
[1731354378836,9.9208557,217.11,216.97,22.43603446]
[1731354379239,4.9923533,217.11,216.99,22.43603446]
[1731354379425,4.9285024,217.15,217.05,22.43603446]
[1731354379629,4.9285024,217.24,217.05,16.7575]
[1731354379836,9.920855,217.27,217.05,16.7575]
[1731354379837,9.920855,217.27,217.06,23.876884]
[1731354380164,9.920855,217.27,217.14,22.43603446]
[1731354380363,4.72090486,217.31,217.14,22.43603446]
[1731354380646,14.5227557,217.3,217.1,22.43603446]
[1731354381340,14.5227557,217.3,217.12,22.43603446]
[1731354382146,14.5227557,217.3,217.05,16.6575]
[1731354382644,4.9285024,217.3,217.15,22.43603446]
[1731354382850,4.9285024,217.3,217.16,22.43603446]
[1731354383029,4.72090486,217.31,217.16,22.43603446]
[1731354383228,14.25120726,217.31,217.14,22.43603446]
[1731354383444,9.64940726,217.31,217.14,22.43603446]
[1731354383836,14.25120726,217.31,217.14,22.43603446]
[1731354384139,9.64940726,217.31,217.14,22.43603446]
[1731354384542,4.72090486,217.31,217.16,22.43603446]
[1731354384750,4.72090486,217.31,217.06,23.876884]
[1731354384751,4.72090486,217.31,217.2,22.43603446]
[1731354384932,4.6004,217.37,217.18,22.43603446]
[1731354385254,9.665307,217.36,217.14,22.43603446]
[1731354385431,9.665307,217.36,217.16,22.43603446]
[1731354386248,4.6008,217.35,217.16,22.43603446]
[1731354386440,4.9285024,217.34,217.16,22.43603446]
[1731354386949,4.9285024,217.34,217.12,6.5162]
[1731354387134,4.9285024,217.34,217.15,22.43603446]
[1731354387338,9.5297024,217.34,217.15,22.43603446]
[1731354387542,9.5297024,217.34,217.17,22.43603446]
[1731354387741,4.7368046,217.36,217.19,22.43603446]
[1731354388958,9.3375046,217.36,217.15,22.43603446]
[1731354389651,4.9285024,217.35,217.15,22.43603446]
[1731354390555,4.601,217.34,217.15,22.43603446]
[1731354392537,4.601,217.34,217.17,22.43603446]
[1731354392763,9.3375046,217.36,217.17,22.43603446]
[1731354392943,4.7368046,217.36,217.19,22.43603446]
[1731354393545,9.3375046,217.36,217.19,22.43603446]
[1731354394340,9.3375046,217.36,217.12,6.5162]
[1731354394341,4.7368046,217.36,217.21,22.43603446]
[1731354395159,4.5997,217.41,217.23,22.43603446]
[1731354395366,4.5992,217.43,217.25,22.43603446]
[1731354395548,9.34437977,217.43,217.25,22.43603446]
[1731354398764,4.74517977,217.43,217.25,22.43603446]
[1731354398974,4.74517977,217.43,217.27,22.43603446]
[1731354399267,4.74517977,217.43,217.29,22.43603446]
[1731354399644,2.01975993,217.5,217.37,22.43603446]
[1731354399947,4.73830724,217.56,217.38,22.43603446]
[1731354400672,9.33490724,217.56,217.37,22.43603446]
[1731354401164,4.73830724,217.56,217.41,22.43603446]
[1731354402051,4.5958,217.59,217.43,22.43603446]
[1731354402261,4.74536414,217.6,217.43,22.43603446]
[1731354402668,4.5947,217.64,217.43,22.43603446]
[1731354402977,4.75428912,217.61,217.43,22.43603446]
[1731354403765,9.34958912,217.61,217.32,23.876884]
[1731354403959,14.27809152,217.61,217.42,22.43603446]
[1731354404566,9.68279152,217.61,217.46,22.43603446]
[1731354404768,4.75428912,217.61,217.46,22.43603446]
[1731354404956,4.75428912,217.61,217.44,22.43603446]
[1731354405355,4.5949,217.63,217.46,22.43603446]
[1731354405880,4.75131463,217.64,217.48,22.43603446]
[1731354406070,9.34611463,217.64,217.48,22.43603446]
[1731354406456,9.34611463,217.64,217.46,22.43603446]
[1731354408049,9.05213211,217.69,217.46,22.43603446]
[1731354408250,4.65901997,217.72,217.46,22.43603446]
[1731354408563,13.624687,217.71,217.44,6.0129]
[1731354408766,13.624687,217.71,217.47,22.43603446]
[1731354409364,11.4847,217.69,217.47,22.43603446]
[1731354409874,0.1,217.67,217.43,22.43603446]
[1731354410075,0.1,217.67,217.41,22.43603446]
[1731354410283,0.1,217.67,217.43,22.43603446]
[1731354410284,4.572555,217.66,217.43,22.43603446]
[1731354410580,4.572555,217.66,217.39,6.0129]
[1731354410581,11.4847,217.69,217.46,22.43603446]
[1731354410873,155.0,217.86,217.54,6.1129]
[1731354411083,0.95428765,217.85,217.68,22.43603446]
[1731354411382,0.95428765,217.85,217.61,15.7322]
[1731354411577,0.95428765,217.85,217.63,22.43603446]
[1731354411578,1.05428765,217.85,217.63,22.43603446]
[1731354411759,0.95428765,217.85,217.61,22.43603446]
[1731354411966,4.5905,217.84,217.61,22.43603446]
[1731354412354,4.5905,217.84,217.63,22.43603446]
[1731354412974,4.5905,217.84,217.59,22.43603446]
[1731354413174,8.85842167,217.84,217.59,22.43603446]
[1731354413373,0.1,217.83,217.59,22.43603446]
[1731354413574,0.1,217.81,217.57,22.43603446]
[1731354414091,16.0668,217.84,217.47,11.4847]
[1731354414092,0.1,217.76,217.47,11.4847]
[1731354414263,5.52968663,217.75,217.52,22.43603446]
[1731354415197,5.52968663,217.75,217.56,22.43603446]
[1731354415866,10.12208663,217.75,217.56,22.43603446]
[1731354416062,10.12208663,217.75,217.54,22.43603446]
[1731354416374,10.12208663,217.75,217.56,22.43603446]
[1731354416761,10.12208663,217.75,217.54,22.43603446]
[1731354417169,10.12208663,217.75,217.52,22.43603446]
[1731354417384,23.56730175,217.75,217.43,6.0129]
[1731354417683,4.71819945,217.74,217.46,22.43603446]
[1731354417865,4.59949401,217.73,217.46,22.43603446]
[1731354418064,4.59949401,217.73,217.48,22.43603446]
[1731354418065,4.69949401,217.73,217.48,22.43603446]
[1731354418482,4.593,217.72,217.48,22.43603446]
[1731354418666,5.52968663,217.71,217.48,22.43603446]
[1731354418878,5.52968663,217.71,217.42,18.388116]
[1731354419187,10.14788608,217.71,217.47,22.43603446]
[1731354419363,5.52968663,217.71,217.49,22.43603446]
[1731354419763,5.52968663,217.71,217.38,5.529686]
[1731354420064,10.14788608,217.71,217.48,22.43603446]
[1731354420266,10.14788608,217.71,217.39,1.0191224]
[1731354420267,5.52968663,217.71,217.5,22.43603446]
[1731354420473,10.12308663,217.71,217.5,22.43603446]
[1731354421084,10.12308663,217.71,217.48,22.43603446]
[1731354421383,10.12308663,217.71,217.34,17.51869786]
[1731354421384,10.12308663,217.71,217.46,22.43603446]
[1731354421895,14.74128608,217.71,217.46,22.43603446]
[1731354422381,4.61819945,217.7,217.46,22.43603446]
[1731354422568,8.90420512,217.69,217.46,22.43603446]
[1731354422770,8.90420512,217.69,217.37,20.1]
[1731354422986,8.90420512,217.69,217.45,22.43603446]
[1731354423589,20.38840512,217.69,217.43,22.43603446]
[1731354423879,8.49046458,217.68,217.38,22.43603446]
[1731354424085,5.52968663,217.67,217.42,22.43603446]
[1731354424281,5.52968663,217.67,217.35,6.1006]
[1731354424473,4.74962343,217.66,217.44,22.43603446]
[1731354424676,4.31060512,217.65,217.43,22.43603446]
[1731354425282,4.31060512,217.65,217.45,22.43603446]
[1731354425480,5.81857552,217.68,217.45,22.43603446]
[1731354425797,4.02171623,217.66,217.42,22.43603446]
[1731354425976,4.02171623,217.66,217.46,22.43603446]
[1731354426281,2.06545331,217.69,217.38,23.876884]
[1731354426282,2.06545331,217.69,217.52,22.43603446]
[1731354426466,4.5932,217.72,217.49,6.0033]
[1731354426666,4.02171623,217.69,217.48,15.2309]
[1731354426876,3.87226513,217.72,217.51,0.1]
[1731354427166,5.52811824,217.76,217.57,0.1]
[1731354427375,5.52811824,217.76,217.59,0.1]
[1731354427588,4.28466282,217.81,217.59,0.2]
[1731354427790,0.95428765,217.81,217.59,0.2]
[1731354428092,16.0697,217.8,217.56,0.1]
[1731354428262,0.95428765,217.79,217.55,0.1]
[1731354428466,9.81278106,217.78,217.53,0.1]
[1731354428662,13.66538259,217.78,217.49,0.1]
[1731354428985,13.66538259,217.78,217.47,0.1]
[1731354428986,13.66538259,217.78,217.47,0.2]
[1731354429667,39.032,217.77,217.47,0.2]
[1731354429885,8.71817891,217.76,217.48,22.43603446]
[1731354430088,13.66538259,217.76,217.51,0.1]
[1731354430289,18.37714077,217.76,217.51,0.2]
[1731354430581,14.09247795,217.76,217.53,0.1]
[1731354430766,4.71175818,217.76,217.59,0.1]
[1731354431091,4.592,217.77,217.59,0.2]
[1731354431295,4.592,217.77,217.6,0.1]
[1731354431467,6.61864959,217.79,217.62,0.1]
[1731354432386,5.52811824,217.78,217.55,0.2]
[1731354432596,5.52811824,217.78,217.55,22.63603446]
[1731354433384,5.52811824,217.78,217.55,0.1]
[1731354434488,5.52811824,217.78,217.56,0.1]
[1731354434874,5.52811824,217.78,217.6,0.1]
[1731354435268,2.02704959,217.79,217.62,0.1]
[1731354435466,2.02704959,217.79,217.55,6.3237]
[1731354435467,5.52811824,217.84,217.64,0.2]
[1731354435886,5.52811824,217.84,217.55,6.3237]
[1731354435887,5.52811824,217.84,217.66,0.2]
[1731354436071,15.76936282,217.92,217.7,0.1]
[1731354436384,4.67531054,217.89,217.7,0.1]
[1731354436878,4.67531054,217.89,217.69,0.2]
[1731354437091,0.58091456,217.88,217.66,0.1]
[1731354437273,0.58091456,217.88,217.63,22.53603446]
[1731354437274,5.52811824,217.88,217.65,0.1]
[1731354437593,5.52811824,217.88,217.67,22.53603446]
[1731354437779,5.52811824,217.88,217.68,0.1]
[1731354437972,5.52811824,217.88,217.69,22.53603446]
[1731354438194,4.67531054,217.89,217.7,0.1]
[1731354438392,4.1307,217.88,217.71,0.1]
[1731354438594,4.1307,217.88,217.7,0.1]
[1731354438898,6.77975449,217.92,217.83,22.43603446]
[1731354439075,4.125,218.18,217.91,22.43603446]
[1731354439275,2.07361385,218.1,217.92,0.1]
[1731354439592,4.73470834,218.17,217.91,0.1]
[1731354439802,4.28466282,218.16,217.9,0.1]
[1731354440172,4.1256,218.15,217.91,22.53603446]
[1731354440373,4.1256,218.15,217.93,0.1]
[1731354440591,4.1256,218.15,217.93,22.53603446]
[1731354440796,4.1256,218.15,217.93,22.63603446]
[1731354441172,4.73470834,218.17,217.91,21.8196]
[1731354441173,4.73470834,218.17,218.0,22.43603446]
[1731354441367,4.73470834,218.17,217.96,0.1]
[1731354441587,4.73470834,218.17,217.96,22.53603446]
[1731354441795,4.73470834,218.17,217.98,22.43603446]
[1731354442089,4.73470834,218.17,217.96,0.1]
[1731354442293,8.86000834,218.17,217.96,22.43603446]
[1731354442673,8.86000834,218.17,217.98,22.43603446]
[1731354442881,8.86000834,218.17,218.0,0.1]
[1731354443202,2.07969776,218.21,218.0,0.2]
[1731354443517,4.28466282,218.22,218.0,0.2]
[1731354443891,4.28466282,218.22,218.0,0.1]
[1731354444071,4.28466282,218.22,217.99,22.43603446]
[1731354444268,4.1246,218.2,217.99,22.43603446]
[1731354444472,4.1246,218.2,217.96,0.1]
[1731354444672,8.40926282,218.2,218.01,0.1]
[1731354444889,4.1246,218.2,218.01,0.1]
[1731354445100,4.1246,218.2,218.02,0.1]
[1731354446080,4.1246,218.2,218.01,0.1]
[1731354446678,4.1246,218.2,218.0,0.1]
[1731354446880,8.40926282,218.2,218.0,0.1]
[1731354447301,8.40926282,218.2,217.99,0.1]
[1731354447498,8.40926282,218.2,217.98,0.1]
[1731354447699,4.28466282,218.19,217.95,0.1]
[1731354447900,4.28466282,218.19,217.93,0.1]
[1731354448086,8.30033691,218.19,217.92,0.1]
[1731354448289,8.30033691,218.19,217.91,21.8196]
[1731354448487,120.80033691,218.19,217.9,0.1]
[1731354448696,116.51567409,218.18,217.88,0.1]
[1731354448885,70.0,218.16,217.84,15.7867]
[1731354449085,122.35381278,218.15,217.84,0.1]
[1731354449408,112.5,218.14,217.84,0.1]
[1731354449576,118.83009255,218.14,217.86,0.1]
[1731354449778,18.72546282,218.13,217.86,0.1]
[1731354450100,14.4408,218.13,217.87,0.1]
[1731354450482,14.4408,218.13,217.85,0.1]
[1731354450677,16.75521846,218.13,217.86,0.1]
[1731354450901,16.75521846,218.13,217.9,0.1]
[1731354451101,14.4408,218.13,217.9,0.2]
[1731354451311,14.4408,218.13,217.9,0.1]
[1731354451479,37.38501846,218.13,217.84,22.53603446]
[1731354451686,4.28466282,218.12,217.83,0.1]
[1731354452000,7.89046569,218.12,217.86,0.1]
[1731354452201,112.5,218.11,217.86,0.1]
[1731354452389,4.28466282,218.12,217.84,0.1]
[1731354452596,4.28466282,218.12,217.88,0.1]
[1731354452794,14.4428,218.1,217.88,0.1]
[1731354452983,23.776884,218.09,217.82,22.43603446]
[1731354453182,28.06154682,218.09,217.81,0.1]
[1731354453393,28.06154682,218.09,217.83,0.1]
[1731354453394,26.09130246,218.09,217.83,0.1]
[1731354453703,23.776884,218.06,217.83,0.1]
[1731354454203,23.776884,218.05,217.83,0.1]
[1731354454381,14.4455,218.06,217.79,6.5639]
[1731354454382,14.4455,218.06,217.87,0.1]
[1731354454786,4.1273,218.06,217.87,0.1]
[1731354455193,4.1273,218.06,217.91,0.1]
[1731354455382,4.1273,218.06,217.89,0.1]
[1731354456705,27.904484,218.05,217.89,0.1]
[1731354457405,4.1271,218.07,217.92,0.1]
[1731354457585,4.1268,218.09,217.93,6.0937]
[1731354459005,4.1254,218.16,217.95,0.1]
[1731354459216,0.95428765,218.15,217.99,0.1]
[1731354459810,0.95428765,218.15,217.98,0.1]
[1731354459997,0.95428765,218.15,218.0,0.1]
[1731354460209,5.07998765,218.15,218.0,0.1]
[1731354460406,23.776884,218.14,218.0,0.1]
[1731354460790,23.776884,218.14,217.98,0.1]
[1731354461003,23.776884,218.14,218.0,0.1]
[1731354461291,27.902684,218.14,218.0,0.1]
[1731354461492,23.776884,218.14,217.98,0.1]
[1731354461811,23.776884,218.14,218.0,0.1]
[1731354461989,23.776884,218.14,217.98,0.1]
[1731354462183,27.902684,218.14,217.95,0.2]
[1731354462413,27.902684,218.14,217.93,6.2937]
[1731354462618,42.50174682,218.14,217.93,6.0937]
[1731354462803,42.50174682,218.14,217.94,0.1]
[1731354463107,27.902684,218.14,217.96,0.1]
[1731354464314,27.902684,218.14,217.98,0.1]
[1731354464517,38.217084,218.14,217.93,6.1937]
[1731354464691,42.50174682,218.14,217.93,6.0937]
[1731354464891,4.28466282,218.13,217.93,6.0937]
[1731354465119,23.776884,218.12,217.93,6.0937]
[1731354465600,23.776884,218.1,217.93,6.0937]
[1731354466609,32.18483202,218.1,217.93,6.0937]
[1731354466814,23.776884,218.08,217.88,6.2116]
[1731354467113,23.776884,218.06,217.88,6.2116]
[1731354467490,23.776884,218.06,217.85,16.0453]
[1731354467491,23.776884,218.05,217.85,16.0453]
[1731354467692,23.776884,218.04,217.85,16.0453]
[1731354467921,4.1232852,218.03,217.85,16.0453]
[1731354468213,23.776884,218.02,217.85,16.0453]
[1731354468400,23.776884,218.0,217.85,16.0453]
[1731354468721,23.776884,217.98,217.82,6.2116]
[1731354469808,23.776884,217.98,217.82,6.3116]
[1731354470015,23.776884,217.98,217.84,0.1]
[1731354470396,26.07448855,217.98,217.82,6.2116]
[1731354470608,23.776884,217.96,217.82,6.2116]
[1731354472617,23.776884,217.94,217.82,6.2116]
[1731354474596,14.4541,217.93,217.77,15.8258]
[1731354474795,23.776884,217.92,217.75,6.2912]
[1731354475111,23.776884,217.9,217.75,6.2912]
[1731354475313,23.776884,217.88,217.75,6.2912]
[1731354475518,23.776884,217.86,217.63,6.2912]
[1731354475814,23.776884,217.74,217.59,6.2912]
[1731354476017,1.70532466,217.73,217.59,6.2912]
[1731354476221,23.776884,217.72,217.59,6.2912]
[1731354476420,23.776884,217.7,217.59,6.2912]
[1731354476615,4.1343,217.69,217.59,6.2912]
[1731354476809,23.776884,217.68,217.59,6.2912]
[1731354477007,23.776884,217.7,217.59,6.2912]
[1731354478625,5.80854118,217.69,217.59,6.2912]
[1731354478841,23.776884,217.68,217.59,6.2912]
[1731354480001,0.7981,217.75,217.6,0.1]
[1731354480223,0.7981,217.75,217.62,0.1]
[1731354480807,6.60664118,217.75,217.59,6.2912]
[1731354481009,14.57533734,217.74,217.59,6.2912]
[1731354481334,19.06900202,217.74,217.59,6.2912]
[1731354481622,23.776884,217.73,217.59,6.2912]
[1731354481796,5.80854118,217.72,217.59,6.2912]
[1731354481998,5.80854118,217.72,217.56,15.8258]
[1731354481999,23.776884,217.71,217.56,15.8258]
[1731354482225,32.90404484,217.71,217.56,15.8258]
[1731354482413,23.776884,217.69,217.56,15.8258]
[1731354482617,4.1345,217.68,217.56,15.8258]
[1731354482926,23.776884,217.67,217.56,15.8258]
[1731354483126,23.776884,217.67,217.5,15.6409]
[1731354483298,23.776884,217.65,217.5,15.7409]
[1731354483504,23.776884,217.62,217.54,0.1]
[1731354483724,30.0,217.63,217.54,0.1]
[1731354484429,30.0,217.63,217.5,15.6409]
[1731354484430,30.0,217.6,217.5,15.6409]
[1731354484607,23.776884,217.59,217.5,15.6409]
[1731354485429,30.0,217.56,217.5,15.6409]
[1731354485729,23.776884,217.55,217.5,15.6409]
[1731354486732,23.776884,217.51,217.48,6.243]
[1731354487100,23.776884,217.51,217.44,16.5885]
[1731354487101,23.776884,217.51,217.36,0.1]
[1731354487303,23.776884,217.51,217.4,0.1]
[1731354487504,23.776884,217.47,217.4,0.1]
[1731354487724,30.0,217.48,217.42,0.1]
[1731354488100,30.0,217.48,217.44,0.1]
[1731354488301,30.0,217.48,217.45,0.1]
[1731354488549,30.0,217.46,217.45,0.1]
[1731354489115,13.3334,217.46,217.45,0.2]
[1731354489423,4.7353006,217.63,217.48,0.1]
[1731354489936,10.54384178,217.63,217.48,0.1]
[1731354490233,14.67934178,217.63,217.49,6.0794]
[1731354490430,23.776884,217.62,217.5,0.1]
[1731354490605,5.80854118,217.63,217.53,0.1]
[1731354490807,9.94304118,217.68,217.53,0.1]
[1731354491221,5.80854118,217.67,217.53,0.1]
[1731354492009,23.776884,217.66,217.55,0.1]
[1731354492410,23.776884,217.66,217.57,0.1]
[1731354492616,5.80854118,217.67,217.57,0.1]
[1731354492818,5.80854118,217.71,217.62,0.1]
[1731354493012,4.63349616,217.8,217.64,0.1]
[1731354493316,5.80854118,217.77,217.64,0.1]
[1731354494030,9.94134118,217.77,217.63,6.3273]
[1731354494536,9.94134118,217.77,217.64,0.1]
[1731354494740,5.80854118,217.77,217.68,0.1]
[1731354494910,10.327,217.88,217.68,0.1]
[1731354494911,30.0,217.69,217.68,0.1]
[1731354495233,30.0,217.69,217.67,0.1]
[1731354495234,5.80854118,217.84,217.67,0.2]
[1731354495432,5.80854118,217.84,217.69,0.1]
[1731354495934,9.94004118,217.84,217.69,0.2]
[1731354496130,9.94004118,217.84,217.69,0.1]
[1731354496714,5.80854118,217.84,217.71,0.1]
[1731354496913,5.80854118,217.84,217.71,0.2]
[1731354497240,5.80854118,217.84,217.73,0.1]
[1731354497534,5.80854118,217.87,217.74,6.1899]
[1731354498437,5.80854118,217.87,217.67,0.1]
[1731354498438,28.41038016,217.86,217.67,0.1]
[1731354498738,28.41038016,217.86,217.68,6.1899]
[1731354498739,5.80854118,217.85,217.68,6.1899]
[1731354498927,5.80854118,217.85,217.6,15.0857]
[1731354498928,23.776884,217.73,217.6,15.1857]
[1731354499245,23.776884,217.71,217.62,6.1899]
[1731354499549,23.776884,217.69,217.62,6.1899]
[1731354499710,23.776884,217.69,217.53,6.1118]
[1731354499915,23.776884,217.67,217.53,6.1118]
[1731354500350,23.776884,217.67,217.54,0.1]
[1731354500508,23.776884,217.67,217.54,0.2]
[1731354501038,23.776884,217.67,217.54,0.1]
[1731354501221,23.776884,217.67,217.54,0.2]
[1731354501416,23.776884,217.67,217.57,0.1]
[1731354501927,23.776884,217.67,217.59,0.1]
[1731354502110,5.80854118,217.71,217.59,0.1]
[1731354502314,5.80854118,217.71,217.6,0.1]
[1731354502531,30.0,217.74,217.63,0.1]
[1731354502733,30.0,217.74,217.53,6.1118]
[1731354502734,30.0,217.74,217.65,0.1]
[1731354502914,30.0,217.74,217.53,6.2118]
[1731354502915,30.0,217.74,217.67,6.4844]
[1731354503115,30.0,217.74,217.67,6.3844]
[1731354503415,5.80854118,217.73,217.67,6.3844]
[1731354503615,5.80854118,217.73,217.6,0.1]
[1731354503922,5.80854118,217.73,217.58,6.3844]
[1731354504230,9.94214118,217.73,217.59,0.1]
[1731354504426,9.94214118,217.73,217.58,6.3844]
[1731354504427,5.80854118,217.73,217.64,0.1]
[1731354504633,5.80854118,217.73,217.62,0.1]
[1731354505147,5.80854118,217.73,217.58,6.3844]
[1731354505148,9.94204118,217.73,217.58,6.3844]
[1731354505440,14.90559289,217.73,217.59,0.1]
[1731354505634,9.94204118,217.73,217.62,0.1]
[1731354505822,23.776884,217.72,217.62,0.1]
[1731354506136,27.910584,217.72,217.61,0.1]
[1731354506634,23.776884,217.72,217.61,0.1]
[1731354507936,5.80854118,217.73,217.63,0.1]
[1731354508139,5.80854118,217.73,217.65,0.1]
[1731354508330,30.0,217.74,217.67,0.1]
[1731354508521,30.0,217.74,217.68,0.1]
[1731354509327,30.0,217.74,217.7,0.1]
[1731354509816,30.0,217.74,217.68,0.1]
[1731354511069,30.0,217.74,217.67,0.1]
[1731354511618,30.0,217.74,217.66,22.15]
[1731354512452,23.776884,217.73,217.66,22.05]
[1731354513251,23.776884,217.73,217.66,6.0407]
[1731354516941,23.776884,217.73,217.6,16.4303]
[1731354516942,33.71902518,217.73,217.6,16.4303]
[1731354517144,32.87403571,217.73,217.6,16.4303]
[1731354517439,23.776884,217.71,217.6,16.4303]
[1731354517849,29.58542518,217.71,217.6,16.4303]
[1731354518223,29.58542518,217.71,217.6,16.5303]
[1731354518425,29.58542518,217.71,217.62,0.1]
[1731354518624,29.58542518,217.71,217.6,16.5303]
[1731354518922,29.58542518,217.71,217.55,0.2]
[1731354518923,28.74043571,217.71,217.55,0.2]
[1731354519121,2.21274836,217.73,217.55,0.1]
[1731354519122,23.776884,217.69,217.55,0.1]
[1731354519339,0.95664068,217.68,217.55,0.1]
[1731354519527,23.776884,217.67,217.55,0.1]
[1731354519724,31.91849503,217.67,217.55,0.1]
[1731354519936,23.776884,217.65,217.56,0.1]
[1731354520549,23.776884,217.65,217.55,6.1658]
[1731354522048,23.776884,217.65,217.56,0.1]
[1731354522230,23.776884,217.65,217.6,0.1]
[1731354523950,9.94224118,217.73,217.62,0.1]
[1731354524143,12.22290886,217.73,217.62,0.1]
[1731354524441,11.37791939,217.73,217.59,0.1]
[1731354524629,5.80854118,217.72,217.59,0.1]
[1731354524836,10.77209289,217.72,217.59,0.1]
[1731354525032,4.96355171,217.71,217.59,0.1]
[1731354525237,23.776884,217.7,217.59,0.1]
[1731354525433,0.95664068,217.69,217.59,0.1]
[1731354525726,23.776884,217.68,217.59,0.1]
[1731354525944,0.95664068,217.67,217.63,0.1]
[1731354526125,30.0,217.74,217.65,0.1]
[1731354526323,30.0,217.74,217.66,0.1]
[1731354526555,30.0,217.74,217.7,6.462]
[1731354526850,30.0,217.74,217.71,0.1]
[1731354527054,30.0,217.74,217.73,0.1]
[1731354527432,29.96546985,217.74,217.73,0.1]
[1731354527636,4.1301,217.91,217.75,0.1]
[1731354527834,15.0386909,217.9,217.75,0.1]
[1731354528048,4.1305,217.89,217.75,0.1]
[1731354528249,10.77209289,217.88,217.75,0.1]
[1731354528629,10.77209289,217.88,217.79,0.1]
[1731354528948,10.77209289,217.88,217.73,0.1]
[1731354529148,10.77209289,217.88,217.71,0.2]
[1731354529451,15.0386909,217.88,217.73,0.2]
[1731354529631,15.0386909,217.88,217.71,0.2]
[1731354530035,27.907784,217.87,217.73,0.2]
[1731354530255,23.776884,217.85,217.73,0.1]
[1731354530954,5.80854118,217.86,217.77,0.1]
[1731354531329,7.16066823,217.91,217.81,0.1]
[1731354531524,11.29086823,217.91,217.79,0.1]
[1731354531741,11.29086823,217.91,217.7,6.462]
[1731354531742,10.77209289,217.9,217.75,0.1]
[1731354532157,4.1305,217.89,217.72,0.2]
[1731354532361,5.22323869,217.88,217.7,6.562]
[1731354532535,23.776884,217.86,217.7,6.462]
[1731354532729,23.776884,217.84,217.7,6.462]
[1731354532925,23.776884,217.82,217.7,6.462]
[1731354533151,27.78288717,217.82,217.7,6.462]
[1731354533354,23.776884,217.8,217.71,0.1]
[1731354533743,5.80854118,217.8,217.7,6.462]
[1731354534055,23.776884,217.79,217.7,6.462]
[1731354534234,23.776884,217.8,217.7,6.462]
[1731354534433,23.776884,217.78,217.7,6.462]
[1731354534848,27.909484,217.78,217.7,6.462]
[1731354535041,23.776884,217.76,217.7,6.462]
[1731354535240,23.776884,217.76,217.7,6.562]
[1731354535645,23.776884,217.76,217.7,6.462]
[1731354535955,23.776884,217.76,217.64,6.2054]
[1731354536146,29.58542518,217.77,217.64,6.2054]
[1731354536340,23.776884,217.75,217.64,6.2054]
[1731354536540,0.95664068,217.74,217.64,6.2054]
[1731354536842,10.77209289,217.74,217.67,0.1]
[1731354537052,23.776884,217.79,217.7,0.1]
[1731354537245,5.80854118,217.8,217.7,0.1]
[1731354537548,5.80854118,217.8,217.72,0.1]
[1731354537748,5.80854118,217.8,217.75,0.1]
[1731354538152,2.28565816,217.86,217.77,0.1]
[1731354538461,5.80854118,217.86,217.77,6.6748]
[1731354539550,8.85213155,217.93,217.8,0.1]
[1731354539853,5.80854118,217.92,217.8,0.1]
[1731354540166,5.80854118,217.92,217.81,0.1]
[1731354540458,5.80854118,217.92,217.83,0.2]
[1731354540646,5.80854118,217.92,217.81,0.1]
[1731354540951,5.80854118,217.92,217.83,0.1]
[1731354541150,5.80854118,217.92,217.83,0.2]
[1731354541342,5.80854118,217.92,217.86,0.1]
[1731354541657,2.23257178,217.94,217.91,0.1]
[1731354541950,5.808541,218.02,217.89,0.1]
[1731354541951,5.808541,218.02,217.95,0.1]
[1731354542150,5.80854118,218.04,217.95,0.1]
[1731354542332,5.80854118,218.04,217.92,6.1702]
[1731354542333,4.96355171,218.03,217.92,6.1702]
[1731354542530,13.0732276,218.03,217.92,6.1702]
[1731354542758,5.80854118,218.02,217.92,6.1702]
[1731354542931,5.08484068,218.01,217.92,6.1702]
[1731354543132,5.08484068,218.01,217.87,0.1]
[1731354543133,9.09175171,218.01,217.87,0.2]